[Event "Titled Tuesday Blitz August 08 Late 2023"]
[White "Maluco_do_Natal_00"]
[Black "Polaczek, Richard"]
[BlackFideId "200026"]
[WhiteElo "2073"]
[BlackElo "2360"]
[Result "0-1"]
[Round "3"]
[TimeControl "180+1"]
[Date "2023.08.08"]
[WhiteClock "0:00:00"]
[BlackClock "0:00:11"]
[Board "188"]

1. e4 {[%clk 0:03:00]}  Nf6 {[%clk 0:02:58]} 2. e5 {[%clk 0:03:00]}  Nd5 {[%clk 0:02:58]} 3. c4 {[%clk 0:03:00]}  Nb6 {[%clk 0:02:58]} 4. d4 {[%clk 0:03:00]}  d6 {[%clk 0:02:58]} 5. exd6 {[%clk 0:03:01]}  cxd6 {[%clk 0:02:57]} 6. Bd3 {[%clk 0:03:01]}  g6 {[%clk 0:02:57]} 7. Nc3 {[%clk 0:03:01]}  Bg7 {[%clk 0:02:57]} 8. Be3 {[%clk 0:03:01]}  O-O {[%clk 0:02:52]} 9. Nge2 {[%clk 0:02:59]}  d5 {[%clk 0:02:47]} 10. c5 {[%clk 0:02:58]}  N6d7 {[%clk 0:02:46]} 11. f4 {[%clk 0:02:52]}  Nc6 {[%clk 0:02:39]} 12. O-O {[%clk 0:02:47]}  Nxc5 {[%clk 0:02:35]} 13. dxc5 {[%clk 0:02:40]}  d4 {[%clk 0:02:35]} 14. Bd2 {[%clk 0:02:36]}  dxc3 {[%clk 0:02:32]} 15. Bxc3 {[%clk 0:02:36]}  Bxc3 {[%clk 0:02:29]} 16. Nxc3 {[%clk 0:02:36]}  Qd4+ {[%clk 0:02:28]} 17. Kh1 {[%clk 0:02:35]}  Qxc5 {[%clk 0:02:28]} 18. f5 {[%clk 0:02:34]}  Bxf5 {[%clk 0:02:09]} 19. Bxf5 {[%clk 0:02:34]}  gxf5 {[%clk 0:02:08]} 20. Qh5 {[%clk 0:02:34]}  Nd4 {[%clk 0:01:53]} 21. Rf4 {[%clk 0:02:15]}  Qe5 {[%clk 0:01:45]} 22. Raf1 {[%clk 0:01:38]}  Rad8 {[%clk 0:01:31]} 23. Rh4 {[%clk 0:01:06]}  Qg7 {[%clk 0:01:26]} 24. Rh3 {[%clk 0:01:05]}  Rd6 {[%clk 0:01:20]} 25. Re1 {[%clk 0:01:00]}  Rg6 {[%clk 0:00:58]} 26. Nd5 {[%clk 0:00:53]}  e6 {[%clk 0:00:49]} 27. Ne7+ {[%clk 0:00:53]}  Kh8 {[%clk 0:00:49]} 28. Nxg6+ {[%clk 0:00:53]}  fxg6 {[%clk 0:00:48]} 29. Qh4 {[%clk 0:00:45]}  e5 {[%clk 0:00:46]} 30. Rc3 {[%clk 0:00:34]}  e4 {[%clk 0:00:43]} 31. Qf4 {[%clk 0:00:28]}  Nc6 {[%clk 0:00:37]} 32. Rd1 {[%clk 0:00:26]}  Qe7 {[%clk 0:00:30]} 33. a3 {[%clk 0:00:24]}  Re8 {[%clk 0:00:28]} 34. b4 {[%clk 0:00:21]}  a6 {[%clk 0:00:26]} 35. Qe3 {[%clk 0:00:15]}  Qe5 {[%clk 0:00:22]} 36. Rc5 {[%clk 0:00:14]}  Qf6 {[%clk 0:00:21]} 37. Rcd5 {[%clk 0:00:13]}  Ne5 {[%clk 0:00:20]} 38. Qd4 {[%clk 0:00:12]}  Ng4 {[%clk 0:00:18]} 39. Qxf6+ {[%clk 0:00:09]}  Nxf6 {[%clk 0:00:18]} 40. Rd6 {[%clk 0:00:08]}  Kg7 {[%clk 0:00:18]} 41. Kg1 {[%clk 0:00:08]}  Re7 {[%clk 0:00:18]} 42. Kf1 {[%clk 0:00:08]}  f4 {[%clk 0:00:17]} 43. h3 {[%clk 0:00:08]}  g5 {[%clk 0:00:17]} 44. Ke2 {[%clk 0:00:08]}  h5 {[%clk 0:00:17]} 45. Rd8 {[%clk 0:00:07]}  g4 {[%clk 0:00:16]} 46. hxg4 {[%clk 0:00:06]}  hxg4 {[%clk 0:00:16]} 47. Rh1 {[%clk 0:00:06]}  f3+ {[%clk 0:00:15]} 48. gxf3 {[%clk 0:00:06]}  exf3+ {[%clk 0:00:15]} 49. Kf1 {[%clk 0:00:05]}  Ne4 {[%clk 0:00:14]} 50. Rhh8 {[%clk 0:00:04]}  Ng3+ {[%clk 0:00:13]} 51. Kf2 {[%clk 0:00:04]}  Ne4+ {[%clk 0:00:12]} 52. Kf1 {[%clk 0:00:03]}  g3 {[%clk 0:00:12]} 53. Rhg8+ {[%clk 0:00:02]}  Kh6 {[%clk 0:00:11]} 54. Rh8+ {[%clk 0:00:02]}  Kg5 {[%clk 0:00:11]} 55. Rdg8+ {[%clk 0:00:00]}  Kf4 {[%clk 0:00:11]} 0-1


[Site "https://www.chess.com"]

[Event "Titled Tuesday Blitz August 08 Late 2023"]
[White "Ortmann, David"]
[Black "Nikulina, Alena"]
[WhiteFideId "4651588"]
[BlackFideId "4172051"]
[WhiteElo "2359"]
[BlackElo "2072"]
[Result "1-0"]
[Round "3"]
[TimeControl "180+1"]
[Date "2023.08.08"]
[WhiteClock "0:00:03"]
[BlackClock "0:00:00"]
[Board "189"]

1. Nf3 {[%clk 0:03:00]}  d5 {[%clk 0:02:58]} 2. d4 {[%clk 0:03:00]}  Nf6 {[%clk 0:02:57]} 3. c4 {[%clk 0:03:00]}  dxc4 {[%clk 0:02:57]} 4. e3 {[%clk 0:03:00]}  a6 {[%clk 0:02:56]} 5. Bxc4 {[%clk 0:03:00]}  e6 {[%clk 0:02:55]} 6. O-O {[%clk 0:02:59]}  b5 {[%clk 0:02:55]} 7. Bb3 {[%clk 0:02:59]}  Nbd7 {[%clk 0:02:51]} 8. Qe2 {[%clk 0:02:59]}  c5 {[%clk 0:02:46]} 9. a4 {[%clk 0:02:59]}  b4 {[%clk 0:02:42]} 10. Nbd2 {[%clk 0:02:59]}  Bb7 {[%clk 0:02:37]} 11. Nc4 {[%clk 0:02:59]}  cxd4 {[%clk 0:02:30]} 12. exd4 {[%clk 0:02:54]}  Be7 {[%clk 0:02:27]} 13. Bf4 {[%clk 0:02:52]}  O-O {[%clk 0:02:18]} 14. Nd6 {[%clk 0:02:41]}  Bd5 {[%clk 0:02:17]} 15. Bxd5 {[%clk 0:02:26]}  Nxd5 {[%clk 0:02:16]} 16. Bg3 {[%clk 0:02:26]}  N7f6 {[%clk 0:02:06]} 17. Nc4 {[%clk 0:02:21]}  h6 {[%clk 0:01:29]} 18. Nfe5 {[%clk 0:02:21]}  Rc8 {[%clk 0:01:22]} 19. Rac1 {[%clk 0:02:21]}  Nb6 {[%clk 0:01:14]} 20. Rfd1 {[%clk 0:02:02]}  Nfd5 {[%clk 0:01:07]} 21. Na5 {[%clk 0:01:54]}  Nxa4 {[%clk 0:00:50]} 22. Nac6 {[%clk 0:01:17]}  Qb6 {[%clk 0:00:45]} 23. Nd7 {[%clk 0:01:17]}  Qb7 {[%clk 0:00:32]} 24. Nxe7+ {[%clk 0:01:13]}  Nxe7 {[%clk 0:00:25]} 25. Nxf8 {[%clk 0:01:11]}  Rxf8 {[%clk 0:00:21]} 26. Bd6 {[%clk 0:01:04]}  Re8 {[%clk 0:00:16]} 27. Bxe7 {[%clk 0:01:04]}  Rxe7 {[%clk 0:00:16]} 28. Rd2 {[%clk 0:00:54]}  a5 {[%clk 0:00:16]} 29. Qc4 {[%clk 0:00:49]}  Nb6 {[%clk 0:00:15]} 30. Qc6 {[%clk 0:00:26]}  Qb8 {[%clk 0:00:13]} 31. Qb5 {[%clk 0:00:25]}  Ra7 {[%clk 0:00:11]} 32. Rc6 {[%clk 0:00:23]}  Rb7 {[%clk 0:00:11]} 33. Rdc2 {[%clk 0:00:23]}  Kh7 {[%clk 0:00:09]} 34. Qd3+ {[%clk 0:00:21]}  g6 {[%clk 0:00:09]} 35. h4 {[%clk 0:00:20]}  Nd5 {[%clk 0:00:08]} 36. h5 {[%clk 0:00:18]}  Nf4 {[%clk 0:00:08]} 37. hxg6+ {[%clk 0:00:19]}  fxg6 {[%clk 0:00:07]} 38. Qe4 {[%clk 0:00:18]}  Rf7 {[%clk 0:00:06]} 39. Rc8 {[%clk 0:00:18]}  Qd6 {[%clk 0:00:05]} 40. Qa8 {[%clk 0:00:16]}  g5 {[%clk 0:00:03]} 41. Rh8+ {[%clk 0:00:16]}  Kg6 {[%clk 0:00:04]} 42. Qe8 {[%clk 0:00:16]}  Qxd4 {[%clk 0:00:02]} 43. Rg8+ {[%clk 0:00:15]}  Kf6 {[%clk 0:00:02]} 44. Rf8 {[%clk 0:00:14]}  Qd1+ {[%clk 0:00:03]} 45. Kh2 {[%clk 0:00:13]}  Qh5+ {[%clk 0:00:02]} 46. Kg1 {[%clk 0:00:12]}  Qd1+ {[%clk 0:00:03]} 47. Kh2 {[%clk 0:00:12]}  Qh5+ {[%clk 0:00:04]} 48. Kg3 {[%clk 0:00:05]}  Qd1 {[%clk 0:00:05]} 49. Rxf7+ {[%clk 0:00:04]}  Kg6 {[%clk 0:00:00]} 50. Rxf4+ {[%clk 0:00:03]} 1-0


[Site "https://www.chess.com"]

[Event "Titled Tuesday Blitz August 08 Late 2023"]
[White "dorpato"]
[Black "Castella Garcia, Fausto"]
[BlackFideId "3501922"]
[WhiteElo "2044"]
[BlackElo "2343"]
[Result "1-0"]
[Round "3"]
[TimeControl "180+1"]
[Date "2023.08.08"]
[WhiteClock "0:00:10"]
[BlackClock "0:00:00"]
[Board "191"]

1. e4 {[%clk 0:03:00]}  c5 {[%clk 0:03:00]} 2. Nc3 {[%clk 0:03:00]}  Nc6 {[%clk 0:02:58]} 3. g3 {[%clk 0:03:00]}  g6 {[%clk 0:02:59]} 4. Bg2 {[%clk 0:02:58]}  Bg7 {[%clk 0:02:59]} 5. d3 {[%clk 0:02:58]}  d6 {[%clk 0:02:59]} 6. Be3 {[%clk 0:02:59]}  Nd4 {[%clk 0:03:00]} 7. Qd2 {[%clk 0:02:51]}  Qa5 {[%clk 0:03:00]} 8. Nge2 {[%clk 0:02:47]}  Nxe2 {[%clk 0:02:58]} 9. Kxe2 {[%clk 0:02:40]}  Nf6 {[%clk 0:02:47]} 10. h3 {[%clk 0:02:37]}  Nd7 {[%clk 0:02:44]} 11. Bh6 {[%clk 0:02:32]}  O-O {[%clk 0:02:39]} 12. Bxg7 {[%clk 0:02:31]}  Kxg7 {[%clk 0:02:40]} 13. h4 {[%clk 0:02:31]}  h5 {[%clk 0:02:38]} 14. g4 {[%clk 0:02:24]}  Ne5 {[%clk 0:02:32]} 15. gxh5 {[%clk 0:02:22]}  Bg4+ {[%clk 0:02:32]} 16. f3 {[%clk 0:02:16]}  Bxh5 {[%clk 0:02:32]} 17. Raf1 {[%clk 0:02:02]}  e6 {[%clk 0:02:25]} 18. Rhg1 {[%clk 0:01:49]}  Rad8 {[%clk 0:02:14]} 19. Bh3 {[%clk 0:01:46]}  Nc6 {[%clk 0:01:56]} 20. Bg4 {[%clk 0:01:38]}  Nd4+ {[%clk 0:01:54]} 21. Ke3 {[%clk 0:01:37]}  Bxg4 {[%clk 0:01:39]} 22. Rxg4 {[%clk 0:01:24]}  f5 {[%clk 0:01:39]} 23. Rg5 {[%clk 0:01:15]}  fxe4 {[%clk 0:01:32]} 24. dxe4 {[%clk 0:01:00]}  Rf6 {[%clk 0:01:11]} 25. h5 {[%clk 0:00:52]}  Rdf8 {[%clk 0:01:07]} 26. Rxg6+ {[%clk 0:00:47]}  Rxg6 {[%clk 0:01:06]} 27. hxg6 {[%clk 0:00:47]}  Qd8 {[%clk 0:01:05]} 28. Qg2 {[%clk 0:00:44]}  Qh4 {[%clk 0:00:55]} 29. Ne2 {[%clk 0:00:32]}  Qh6+ {[%clk 0:00:40]} 30. Kd3 {[%clk 0:00:29]}  c4+ {[%clk 0:00:39]} 31. Kxd4 {[%clk 0:00:27]}  Qd2+ {[%clk 0:00:39]} 32. Kxc4 {[%clk 0:00:26]}  Rc8+ {[%clk 0:00:39]} 33. Kb3 {[%clk 0:00:20]}  Qxc2+ {[%clk 0:00:38]} 34. Ka3 {[%clk 0:00:20]}  Qc5+ {[%clk 0:00:25]} 35. b4 {[%clk 0:00:17]}  Qe3+ {[%clk 0:00:26]} 36. Kb2 {[%clk 0:00:16]}  Qd2+ {[%clk 0:00:21]} 37. Kb3 {[%clk 0:00:15]}  Qc2+ {[%clk 0:00:20]} 38. Ka3 {[%clk 0:00:15]}  b5 {[%clk 0:00:19]} 39. Rc1 {[%clk 0:00:14]}  Qa4+ {[%clk 0:00:18]} 40. Kb2 {[%clk 0:00:14]}  Qxb4+ {[%clk 0:00:18]} 41. Ka1 {[%clk 0:00:14]}  Rc4 {[%clk 0:00:06]} 42. Rxc4 {[%clk 0:00:14]}  bxc4 {[%clk 0:00:06]} 43. Nc1 {[%clk 0:00:12]}  Qc3+ {[%clk 0:00:06]} 44. Qb2 {[%clk 0:00:12]}  Qxb2+ {[%clk 0:00:04]} 45. Kxb2 {[%clk 0:00:13]}  Kxg6 {[%clk 0:00:05]} 46. Kc3 {[%clk 0:00:13]}  Kg5 {[%clk 0:00:05]} 47. Kxc4 {[%clk 0:00:13]}  Kf4 {[%clk 0:00:06]} 48. Kd4 {[%clk 0:00:11]}  Kxf3 {[%clk 0:00:06]} 49. Nd3 {[%clk 0:00:10]}  e5+ {[%clk 0:00:05]} 50. Nxe5+ {[%clk 0:00:09]}  dxe5+ {[%clk 0:00:00]} 51. Kxe5 {[%clk 0:00:10]} 1-0


[Site "https://www.chess.com"]

[Event "Titled Tuesday Blitz August 08 Late 2023"]
[White "Zairbek kyzy, Begimai"]
[Black "Daianu, Cristian-Clement"]
[WhiteFideId "13803603"]
[BlackFideId "1208926"]
[WhiteElo "2016"]
[BlackElo "2339"]
[Result "1-0"]
[Round "3"]
[TimeControl "180+1"]
[Date "2023.08.08"]
[WhiteClock "0:00:22"]
[BlackClock "0:00:00"]
[Board "193"]

1. e4 {[%clk 0:03:00]}  e5 {[%clk 0:02:59]} 2. Nf3 {[%clk 0:03:00]}  Nc6 {[%clk 0:02:57]} 3. Bc4 {[%clk 0:02:59]}  Nf6 {[%clk 0:02:55]} 4. d3 {[%clk 0:02:59]}  Bc5 {[%clk 0:02:54]} 5. O-O {[%clk 0:02:57]}  d6 {[%clk 0:02:53]} 6. Be3 {[%clk 0:02:56]}  Bxe3 {[%clk 0:02:46]} 7. fxe3 {[%clk 0:02:56]}  O-O {[%clk 0:02:44]} 8. Nc3 {[%clk 0:02:54]}  Ne7 {[%clk 0:02:44]} 9. Qe1 {[%clk 0:02:52]}  c6 {[%clk 0:02:45]} 10. Qg3 {[%clk 0:02:51]}  Ng6 {[%clk 0:02:45]} 11. h3 {[%clk 0:02:45]}  a5 {[%clk 0:02:44]} 12. a4 {[%clk 0:02:43]}  Bd7 {[%clk 0:02:32]} 13. d4 {[%clk 0:02:34]}  Re8 {[%clk 0:02:23]} 14. Rae1 {[%clk 0:02:31]}  Qb6 {[%clk 0:02:19]} 15. Bb3 {[%clk 0:02:20]}  Be6 {[%clk 0:01:57]} 16. Bxe6 {[%clk 0:02:11]}  Rxe6 {[%clk 0:01:58]} 17. b3 {[%clk 0:02:09]}  Rae8 {[%clk 0:01:56]} 18. d5 {[%clk 0:02:03]}  cxd5 {[%clk 0:01:41]} 19. exd5 {[%clk 0:02:02]}  R6e7 {[%clk 0:01:39]} 20. Nd2 {[%clk 0:01:55]}  Qb4 {[%clk 0:01:13]} 21. e4 {[%clk 0:01:55]}  Rc7 {[%clk 0:01:06]} 22. Nc4 {[%clk 0:01:48]}  Rxc4 {[%clk 0:01:02]} 23. bxc4 {[%clk 0:01:48]}  Qxc4 {[%clk 0:01:03]} 24. Qd3 {[%clk 0:01:46]}  Qc5+ {[%clk 0:00:56]} 25. Kh2 {[%clk 0:01:42]}  Nf4 {[%clk 0:00:54]} 26. Qe3 {[%clk 0:01:28]}  Qc4 {[%clk 0:00:47]} 27. Rb1 {[%clk 0:01:09]}  Rc8 {[%clk 0:00:36]} 28. Rf3 {[%clk 0:01:08]}  Qc7 {[%clk 0:00:20]} 29. Rb6 {[%clk 0:00:54]}  h6 {[%clk 0:00:17]} 30. Rg3 {[%clk 0:00:48]}  N6h5 {[%clk 0:00:16]} 31. Rf3 {[%clk 0:00:44]}  Nf6 {[%clk 0:00:16]} 32. Ne2 {[%clk 0:00:37]}  Nd7 {[%clk 0:00:17]} 33. Rb2 {[%clk 0:00:33]}  Ng6 {[%clk 0:00:17]} 34. c3 {[%clk 0:00:27]}  Nc5 {[%clk 0:00:18]} 35. Ng3 {[%clk 0:00:25]}  Nxa4 {[%clk 0:00:18]} 36. Rc2 {[%clk 0:00:23]}  Nc5 {[%clk 0:00:17]} 37. Nf5 {[%clk 0:00:24]}  a4 {[%clk 0:00:15]} 38. Rg3 {[%clk 0:00:23]}  Qd7 {[%clk 0:00:13]} 39. h4 {[%clk 0:00:23]}  f6 {[%clk 0:00:00]} 40. Rxg6 {[%clk 0:00:22]} 1-0


[Site "https://www.chess.com"]

[Event "Titled Tuesday Blitz August 08 Late 2023"]
[White "Dmitriev, Sergey"]
[Black "Shapiro, Daniel"]
[WhiteFideId "14101785"]
[BlackFideId "2001780"]
[WhiteElo "1983"]
[BlackElo "2327"]
[Result "0-1"]
[Round "3"]
[TimeControl "180+1"]
[Date "2023.08.08"]
[WhiteClock "0:00:00"]
[BlackClock "0:00:02"]
[Board "196"]

1. e4 {[%clk 0:03:00]}  c5 {[%clk 0:02:59]} 2. Nf3 {[%clk 0:02:59]}  d6 {[%clk 0:02:58]} 3. d4 {[%clk 0:02:57]}  cxd4 {[%clk 0:02:58]} 4. Nxd4 {[%clk 0:02:55]}  Nf6 {[%clk 0:02:59]} 5. Bb5+ {[%clk 0:02:49]}  Nbd7 {[%clk 0:02:52]} 6. Nc3 {[%clk 0:02:45]}  a6 {[%clk 0:02:52]} 7. Bd3 {[%clk 0:02:40]}  b5 {[%clk 0:02:47]} 8. a3 {[%clk 0:02:38]}  Bb7 {[%clk 0:02:47]} 9. O-O {[%clk 0:02:35]}  g6 {[%clk 0:02:41]} 10. Re1 {[%clk 0:02:34]}  Bg7 {[%clk 0:02:41]} 11. Bg5 {[%clk 0:02:32]}  O-O {[%clk 0:02:40]} 12. Nf3 {[%clk 0:02:28]}  h6 {[%clk 0:02:32]} 13. Bh4 {[%clk 0:02:25]}  e6 {[%clk 0:02:05]} 14. Rc1 {[%clk 0:02:17]}  Qc7 {[%clk 0:02:00]} 15. Qe2 {[%clk 0:02:06]}  Rac8 {[%clk 0:01:54]} 16. h3 {[%clk 0:02:00]}  Rfe8 {[%clk 0:01:48]} 17. Bg3 {[%clk 0:01:58]}  Nh5 {[%clk 0:01:40]} 18. Bh2 {[%clk 0:01:37]}  Bxc3 {[%clk 0:01:34]} 19. bxc3 {[%clk 0:01:37]}  Ne5 {[%clk 0:01:32]} 20. Nxe5 {[%clk 0:01:35]}  dxe5 {[%clk 0:01:32]} 21. Qe3 {[%clk 0:01:29]}  Kg7 {[%clk 0:01:24]} 22. Qa7 {[%clk 0:01:25]}  Ra8 {[%clk 0:01:19]} 23. Qe3 {[%clk 0:01:22]}  Qxc3 {[%clk 0:01:02]} 24. Qb6 {[%clk 0:01:19]}  Rab8 {[%clk 0:00:41]} 25. Qd6 {[%clk 0:01:15]}  Nf4 {[%clk 0:00:25]} 26. Bxf4 {[%clk 0:01:10]}  exf4 {[%clk 0:00:26]} 27. Qxf4 {[%clk 0:01:10]}  Qxa3 {[%clk 0:00:25]} 28. Qe5+ {[%clk 0:01:09]}  Kg8 {[%clk 0:00:24]} 29. Qf4 {[%clk 0:01:06]}  Kg7 {[%clk 0:00:19]} 30. h4 {[%clk 0:01:04]}  e5 {[%clk 0:00:17]} 31. Qg4 {[%clk 0:01:01]}  Qe7 {[%clk 0:00:17]} 32. h5 {[%clk 0:01:00]}  Bc8 {[%clk 0:00:16]} 33. Qg3 {[%clk 0:00:59]}  Qg5 {[%clk 0:00:15]} 34. Qf3 {[%clk 0:00:50]}  Bg4 {[%clk 0:00:13]} 35. Qg3 {[%clk 0:00:48]}  Bxh5 {[%clk 0:00:13]} 36. Qh3 {[%clk 0:00:47]}  Qg4 {[%clk 0:00:12]} 37. Qh2 {[%clk 0:00:45]}  Qf4 {[%clk 0:00:12]} 38. Qh3 {[%clk 0:00:43]}  Bg4 {[%clk 0:00:10]} 39. Qe3 {[%clk 0:00:37]}  Qxe3 {[%clk 0:00:09]} 40. Rxe3 {[%clk 0:00:37]}  Be6 {[%clk 0:00:09]} 41. Ra1 {[%clk 0:00:36]}  Rb6 {[%clk 0:00:10]} 42. g3 {[%clk 0:00:33]}  Rc8 {[%clk 0:00:10]} 43. f4 {[%clk 0:00:32]}  Kf6 {[%clk 0:00:07]} 44. fxe5+ {[%clk 0:00:31]}  Kxe5 {[%clk 0:00:07]} 45. Kg2 {[%clk 0:00:29]}  Bc4 {[%clk 0:00:06]} 46. Rf1 {[%clk 0:00:24]}  Bxd3 {[%clk 0:00:06]} 47. cxd3 {[%clk 0:00:24]}  f6 {[%clk 0:00:06]} 48. Ref3 {[%clk 0:00:23]}  Rd6 {[%clk 0:00:05]} 49. Ra1 {[%clk 0:00:19]}  Rc3 {[%clk 0:00:04]} 50. Rd1 {[%clk 0:00:18]}  Rc2+ {[%clk 0:00:03]} 51. Kh3 {[%clk 0:00:17]}  b4 {[%clk 0:00:04]} 52. g4 {[%clk 0:00:16]}  a5 {[%clk 0:00:04]} 53. Ra1 {[%clk 0:00:15]}  Ra6 {[%clk 0:00:03]} 54. Kg3 {[%clk 0:00:11]}  a4 {[%clk 0:00:04]} 55. Rf2 {[%clk 0:00:11]}  Rxf2 {[%clk 0:00:01]} 56. Kxf2 {[%clk 0:00:10]}  b3 {[%clk 0:00:02]} 57. Ke2 {[%clk 0:00:09]}  Kd4 {[%clk 0:00:02]} 58. Kd2 {[%clk 0:00:09]}  a3 {[%clk 0:00:02]} 59. Rc1 {[%clk 0:00:06]}  b2 {[%clk 0:00:02]} 60. Rc4+ {[%clk 0:00:06]}  Ke5 {[%clk 0:00:03]} 61. Rc5+ {[%clk 0:00:06]}  Kf4 {[%clk 0:00:04]} 62. Rc4 {[%clk 0:00:04]}  b1=Q {[%clk 0:00:03]} 63. e5+ {[%clk 0:00:04]}  Kxe5 {[%clk 0:00:02]} 64. Re4+ {[%clk 0:00:03]}  Kd5 {[%clk 0:00:02]} 65. Re8 {[%clk 0:00:02]}  Qb2+ {[%clk 0:00:02]} 66. Ke3 {[%clk 0:00:00]}  Re6+ {[%clk 0:00:02]} 0-1


[Site "https://www.chess.com"]

[Event "Titled Tuesday Blitz August 08 Late 2023"]
[White "Perez Ponsa, Federico"]
[Black "Vachier-Lagrave, Maxime"]
[WhiteFideId "117927"]
[BlackFideId "623539"]
[WhiteElo "2874"]
[BlackElo "3171"]
[Result "1-0"]
[Round "4"]
[TimeControl "180+1"]
[Date "2023.08.08"]
[WhiteClock "0:00:09"]
[BlackClock "0:00:01"]
[Board "1"]

1. e4 {[%clk 0:02:53]}  e5 {[%clk 0:02:55]} 2. Nf3 {[%clk 0:02:52]}  Nc6 {[%clk 0:02:55]} 3. d4 {[%clk 0:02:53]}  exd4 {[%clk 0:02:55]} 4. Nxd4 {[%clk 0:02:54]}  Bc5 {[%clk 0:02:51]} 5. Nb3 {[%clk 0:02:51]}  Bb4+ {[%clk 0:02:44]} 6. c3 {[%clk 0:02:51]}  Be7 {[%clk 0:02:44]} 7. f4 {[%clk 0:02:49]}  d6 {[%clk 0:02:39]} 8. N1d2 {[%clk 0:02:49]}  f5 {[%clk 0:02:33]} 9. Bd3 {[%clk 0:02:41]}  fxe4 {[%clk 0:02:31]} 10. Nxe4 {[%clk 0:02:41]}  d5 {[%clk 0:02:23]} 11. Ng5 {[%clk 0:02:32]}  Nf6 {[%clk 0:02:19]} 12. Qc2 {[%clk 0:02:24]}  Qd6 {[%clk 0:02:06]} 13. O-O {[%clk 0:01:52]}  Nd8 {[%clk 0:01:45]} 14. Be3 {[%clk 0:01:34]}  b6 {[%clk 0:01:41]} 15. Rae1 {[%clk 0:01:34]}  h6 {[%clk 0:01:41]} 16. Bg6+ {[%clk 0:01:31]}  Kf8 {[%clk 0:01:40]} 17. Nf3 {[%clk 0:01:17]}  Ba6 {[%clk 0:01:32]} 18. Bd3 {[%clk 0:01:12]}  Bxd3 {[%clk 0:01:28]} 19. Qxd3 {[%clk 0:01:13]}  c5 {[%clk 0:01:17]} 20. Nbd2 {[%clk 0:01:03]}  Nf7 {[%clk 0:00:54]} 21. Qf5 {[%clk 0:00:54]}  Qd7 {[%clk 0:00:52]} 22. Qg6 {[%clk 0:00:51]}  Qg4 {[%clk 0:00:47]} 23. Qc2 {[%clk 0:00:50]}  Bd6 {[%clk 0:00:44]} 24. h3 {[%clk 0:00:47]}  Qh5 {[%clk 0:00:41]} 25. Qd3 {[%clk 0:00:28]}  Re8 {[%clk 0:00:37]} 26. a4 {[%clk 0:00:28]}  c4 {[%clk 0:00:33]} 27. Qc2 {[%clk 0:00:25]}  g6 {[%clk 0:00:21]} 28. Bd4 {[%clk 0:00:24]}  Kg7 {[%clk 0:00:17]} 29. Nh2 {[%clk 0:00:18]}  Bc5 {[%clk 0:00:16]} 30. Ndf3 {[%clk 0:00:16]}  Qf5 {[%clk 0:00:10]} 31. Qf2 {[%clk 0:00:15]}  Bxd4 {[%clk 0:00:08]} 32. Nxd4 {[%clk 0:00:14]}  Qd7 {[%clk 0:00:07]} 33. f5 {[%clk 0:00:15]}  g5 {[%clk 0:00:07]} 34. Ne6+ {[%clk 0:00:15]}  Kh7 {[%clk 0:00:07]} 35. Qd4 {[%clk 0:00:15]}  Qe7 {[%clk 0:00:02]} 36. Nxg5+ {[%clk 0:00:10]}  Nxg5 {[%clk 0:00:03]} 37. Rxe7+ {[%clk 0:00:10]}  Rxe7 {[%clk 0:00:04]} 38. Qxf6 {[%clk 0:00:11]}  Rg7 {[%clk 0:00:05]} 39. Ng4 {[%clk 0:00:11]}  Nf7 {[%clk 0:00:05]} 40. Re1 {[%clk 0:00:09]}  h5 {[%clk 0:00:04]} 41. Re7 {[%clk 0:00:10]}  Rf8 {[%clk 0:00:04]} 42. Qh4 {[%clk 0:00:09]}  Kg8 {[%clk 0:00:01]} 43. Nf6+ {[%clk 0:00:09]} 1-0


[Site "https://www.chess.com"]